bitfinex-derivatives/quotes_BTCF0:USTF0_20230402
["timestamp","ask_amount","ask_price","bid_price","bid_amount"]
[1680463273566,0.019,28134.0,28133.0,0.3007]
[1680463273756,0.16902988,28134.0,28133.0,0.3007]
[1680463274158,0.21902988,28135.0,28133.0,0.3007]
[1680463274353,0.019,28134.0,28133.0,0.3007]
[1680463274552,0.069,28134.0,28133.0,0.3007]
[1680463274753,0.019,28134.0,28133.0,0.3007]
[1680463274957,0.019,28134.0,28133.0,0.3017]
[1680463275156,0.069,28134.0,28133.0,0.3017]
[1680463275354,0.019,28134.0,28133.0,0.3017]
[1680463278068,0.18846633,28134.0,28133.0,0.3017]
[1680463279361,0.18846633,28134.0,28133.0,0.3906]
[1680463279556,0.019,28134.0,28133.0,0.3906]
[1680463280062,0.019,28134.0,28133.0,0.3017]
[1680463281564,0.18846633,28134.0,28133.0,0.3017]
[1680463282066,0.019,28134.0,28133.0,0.3017]
[1680463282665,0.18846633,28134.0,28133.0,0.3017]
[1680463285061,0.019,28134.0,28133.0,0.30522163]
[1680463292064,0.019,28134.0,28133.0,0.37602163]
[1680463300072,0.18846633,28134.0,28133.0,0.37602163]
[1680463300273,0.18846633,28134.0,28133.0,0.07532163]
[1680463300476,0.18846633,28134.0,28133.0,0.37602163]
[1680463301984,0.18846633,28134.0,28133.0,0.37632163]
[1680463303887,0.18846633,28134.0,28133.0,0.07562163]
[1680463304078,0.18846633,28134.0,28133.0,0.37632163]
[1680463307590,0.019,28134.0,28133.0,0.37632163]
[1680463308595,0.069,28134.0,28133.0,0.37609807]
[1680463308895,0.019,28134.0,28133.0,0.37609807]
[1680463315093,0.18846633,28134.0,28133.0,0.37609807]
[1680463318297,0.1886204,28134.0,28133.0,0.37609807]
[1680463319503,0.019,28134.0,28133.0,0.37609807]
[1680463326505,0.01879021,28134.0,28133.0,0.37609807]
[1680463330098,0.18844326,28134.0,28133.0,0.37609807]
[1680463331805,0.18844326,28134.0,28133.0,0.3780865]
[1680463334607,0.18844326,28134.0,28133.0,0.4280865]
[1680463336007,0.01879021,28134.0,28133.0,0.4280865]
[1680463336601,0.01879021,28134.0,28133.0,0.3780865]
[1680463338212,0.01879021,28134.0,28133.0,0.3777865]
[1680463346019,0.18844326,28134.0,28133.0,0.3777865]
[1680463349432,0.18844326,28134.0,28133.0,0.4488865]
[1680463349618,0.01879021,28134.0,28133.0,0.4488865]
[1680463349921,0.01879021,28134.0,28133.0,0.4988865]
[1680463351022,0.01879021,28134.0,28133.0,0.4488865]
[1680463351522,0.01879021,28134.0,28133.0,0.1981865]
[1680463351824,0.01879021,28134.0,28133.0,0.4988865]
[1680463352316,0.01879021,28134.0,28133.0,0.1981865]
[1680463352524,0.01879021,28134.0,28133.0,0.4988865]
[1680463353718,0.01879021,28134.0,28133.0,0.4488865]
[1680463354222,0.01879021,28134.0,28133.0,0.1981865]
[1680463354426,0.01879021,28134.0,28133.0,0.4988865]
[1680463355019,0.01879021,28134.0,28133.0,0.1981865]
[1680463355227,0.01879021,28134.0,28133.0,0.4988865]
[1680463358029,0.16965305,28137.0,28134.0,0.05]
[1680463358232,0.16965305,28137.0,28136.0,0.3718]
[1680463359322,0.18765305,28137.0,28136.0,0.3718]
[1680463360127,0.22974431,28137.0,28136.0,0.3718]
[1680463360319,0.22974431,28137.0,28136.0,0.37837087]
[1680463360524,0.21174431,28137.0,28136.0,0.37837087]
[1680463360833,0.22974431,28137.0,28136.0,0.38037087]
[1680463361423,0.018,28137.0,28136.0,0.38037087]
[1680463361727,0.22974431,28137.0,28136.0,0.38037087]
[1680463362534,0.018,28137.0,28136.0,0.38037087]
[1680463363630,0.18760599,28137.0,28136.0,0.38037087]
[1680463367633,0.018,28137.0,28136.0,0.38037087]
[1680463369334,0.018,28137.0,28136.0,0.45147087]
[1680463370232,0.018,28137.0,28136.0,0.15077087]
[1680463370428,0.018,28137.0,28136.0,0.45147087]
[1680463371339,0.16960599,28140.0,28136.0,1.04407087]
[1680463371527,0.25753532,28142.0,28139.0,0.5847]
[1680463371732,0.08792933,28142.0,28141.0,0.3716]
[1680463371927,0.08792933,28142.0,28141.0,0.4427]
[1680463373035,0.08992933,28142.0,28141.0,0.4447]
[1680463375237,0.08992933,28142.0,28141.0,0.46370509]
[1680463376241,0.002,28142.0,28141.0,0.60660509]
[1680463376435,0.03547,28144.0,28142.0,0.05]
[1680463376641,0.03547,28144.0,28143.0,0.2839]
[1680463377339,0.22321798,28146.0,28144.0,0.05]
[1680463377552,0.22321798,28146.0,28145.0,0.0711]
[1680463378134,0.22321798,28146.0,28145.0,0.3718]
[1680463378540,0.05361199,28146.0,28145.0,0.3718]
[1680463378741,0.16960599,28147.0,28145.0,0.3738]
[1680463378943,0.21174431,28148.0,28146.0,0.0711]
[1680463379242,0.51244431,28149.0,28147.0,0.1422]
[1680463379439,0.565928,28149.0,28148.0,0.0709]
[1680463379635,0.615928,28149.0,28148.0,0.0709]
[1680463380645,0.565928,28149.0,28148.0,0.0709]
[1680463380846,0.615928,28149.0,28148.0,0.0709]
[1680463381242,0.615928,28149.0,28148.0,0.0711]
[1680463381440,0.615928,28149.0,28148.0,0.0731]
[1680463381441,0.565928,28149.0,28148.0,0.0731]
[1680463382743,0.35418369,28149.0,28148.0,0.0731]
[1680463382942,0.60827687,28149.0,28148.0,0.0731]
[1680463383340,0.35418369,28149.0,28148.0,0.0731]
[1680463383640,1.03007687,28149.0,28141.0,0.01900509]
[1680463383946,0.0705,28145.0,28141.0,0.06900509]
[1680463384139,0.05,28144.0,28142.0,0.0711]
[1680463384342,0.05,28144.0,28143.0,0.05]
[1680463384546,0.1205,28145.0,28143.0,0.05]
[1680463385246,0.052,28144.0,28143.0,0.05]
[1680463385446,0.1225,28145.0,28143.0,0.052]
[1680463387240,0.0725,28145.0,28143.0,0.052]
[1680463388348,0.0725,28145.0,28143.0,0.002]
[1680463390148,0.0725,28145.0,28144.0,0.01670485]
[1680463390951,0.0725,28145.0,28144.0,0.01870485]
[1680463391954,0.0187,28144.0,28133.0,0.7806]
[1680463392253,0.3007,28136.0,28126.0,0.7007]
[1680463392752,0.05,28135.0,28127.0,0.05]
[1680463392953,0.3718,28132.0,28130.0,0.0707]
[1680463394146,0.3828,28132.0,28130.0,0.0717]
[1680463397159,0.3117,28132.0,28130.0,0.001]
[1680463399054,0.05,28131.0,28130.0,0.001]
[1680463399449,0.00256883,28131.0,28130.0,0.001]
[1680463399857,0.00256883,28131.0,28130.0,0.051]
[1680463400070,0.09546883,28131.0,28130.0,0.05]
[1680463402063,0.00656883,28131.0,28130.0,0.05]
[1680463402257,0.00656883,28131.0,28130.0,0.1389]
[1680463402459,0.0889,28139.0,28131.0,0.05]
[1680463402764,0.05,28138.0,28136.0,0.3007]
[1680463402958,0.14224482,28139.0,28137.0,0.05]
[1680463403459,0.16924482,28139.0,28137.0,0.05]
[1680463404052,0.14224482,28139.0,28137.0,0.05]
[1680463404264,0.16924482,28139.0,28137.0,0.05]
[1680463404970,0.16924482,28139.0,28137.0,0.3507]
[1680463405357,0.16924482,28139.0,28138.0,0.00226836]
[1680463406465,0.14224482,28139.0,28138.0,0.00226836]
[1680463406766,0.16924482,28139.0,28138.0,0.00226836]
[1680463408957,0.1159,28139.0,28137.0,0.3507]
[1680463409152,0.1159,28139.0,28138.0,0.0022672]
[1680463410965,0.1159,28139.0,28134.0,0.3007]
[1680463411265,0.0889,28136.0,28135.0,0.05226673]
[1680463411870,0.1385,28138.0,28135.0,0.05226673]
[1680463412065,0.0889,28137.0,28135.0,0.05226673]
[1680463412265,0.05,28136.0,28135.0,0.00226673]
[1680463412562,0.066,28136.0,28135.0,0.00226673]
[1680463412763,0.016,28136.0,28135.0,0.00226673]
[1680463412958,0.1119,28137.0,28135.0,0.00226673]
[1680463413759,0.1119,28137.0,28135.0,0.05226673]
[1680463414066,0.016,28136.0,28135.0,0.05226673]
[1680463414568,0.1119,28137.0,28135.0,0.05226673]
[1680463415065,0.016,28136.0,28135.0,0.05226673]
[1680463415466,0.0889,28137.0,28135.0,0.05226673]
[1680463415670,0.1119,28137.0,28135.0,0.05226673]
[1680463416366,0.1119,28137.0,28135.0,0.00226673]
[1680463416868,0.066,28136.0,28135.0,0.00226673]
[1680463417169,0.1119,28137.0,28135.0,0.00226673]
[1680463417868,0.0889,28137.0,28135.0,0.00226673]
[1680463418058,0.066,28136.0,28135.0,0.00226673]
[1680463418259,0.0889,28137.0,28135.0,0.00226673]
[1680463418472,0.1119,28137.0,28135.0,0.00226673]
[1680463419565,0.0889,28137.0,28135.0,0.00226673]
[1680463419766,0.066,28136.0,28135.0,0.00226673]
[1680463419966,0.05,28136.0,28135.0,0.00226673]
[1680463420468,0.1119,28137.0,28135.0,0.00226673]
[1680463420469,0.0889,28137.0,28135.0,0.00226673]
[1680463420670,0.016,28136.0,28135.0,0.00226673]
[1680463421561,0.1049,28136.0,28135.0,0.00226673]
[1680463421765,0.1549,28136.0,28135.0,0.00226673]
[1680463421965,0.1549,28136.0,28131.0,0.05]
[1680463422169,0.0889,28135.0,28132.0,0.00226337]
[1680463422373,0.05,28134.0,28132.0,0.00226337]
[1680463422581,0.05,28134.0,28131.0,0.05]
[1680463423463,0.05,28134.0,28130.0,0.3896]
[1680463423669,0.053,28134.0,28130.0,0.3896]
[1680463424563,0.05,28134.0,28130.0,0.3896]
[1680463424772,0.0889,28132.0,28130.0,0.3007]
[1680463425974,0.0899,28132.0,28130.0,0.3047]
[1680463429473,0.0899,28132.0,28130.0,0.004]
[1680463438281,0.0899,28132.0,28131.0,0.3007]
[1680463440482,0.0899,28132.0,28131.0,0.3047]
[1680463440884,0.0899,28132.0,28131.0,0.4807]
[1680463440885,0.001,28132.0,28131.0,0.4807]
[1680463441986,0.001,28132.0,28131.0,0.3927]
[1680463445895,0.001,28132.0,28131.0,0.092]
[1680463446193,0.001,28132.0,28131.0,0.6934]
[1680463446589,0.001,28132.0,28131.0,0.6054]
[1680463449493,0.001,28132.0,28131.0,0.6554]
[1680463454994,0.001,28132.0,28131.0,0.6552965]
[1680463457101,0.001,28132.0,28131.0,0.7262965]
[1680463462099,0.001,28132.0,28131.0,0.7263965]
[1680463464407,0.0721,28132.0,28131.0,0.6052965]
[1680463464707,0.1426,28132.0,28131.0,0.6052965]
[1680463465896,0.14518846,28132.0,28131.0,0.6052965]
[1680463467107,0.09158846,28132.0,28131.0,0.0038965]
[1680463468598,0.09158846,28132.0,28131.0,0.0538965]
[1680463469005,0.09158846,28132.0,28131.0,0.0038965]
[1680463470510,0.09158846,28132.0,28131.0,0.0538965]
[1680463470906,0.09158846,28132.0,28131.0,0.0038965]
[1680463476207,0.14158846,28132.0,28131.0,0.0038965]
[1680463476405,0.14158846,28132.0,28129.0,0.3007]
[1680463476406,0.05,28131.0,28129.0,0.3007]
[1680463476602,0.0889,28130.0,28129.0,0.3007]
[1680463477512,0.0899,28130.0,28129.0,0.3007]
[1680463477912,0.0899,28130.0,28127.0,0.3507]
[1680463478112,0.0882,28128.0,28122.0,1.6894]
[1680463478420,0.0889,28123.0,28122.0,0.6014]
[1680463478713,0.0889,28123.0,28122.0,0.3007]
[1680463479311,0.0919,28123.0,28122.0,0.3007]
[1680463479909,0.0909,28123.0,28122.0,0.3007]
[1680463480314,0.10820593,28123.0,28122.0,0.3007]
[1680463485834,0.01930593,28123.0,28122.0,0.3007]
[1680463486030,0.002,28123.0,28122.0,0.3007]
[1680463487633,0.10800849,28123.0,28121.0,0.05]
[1680463487820,0.0881,28122.0,28121.0,0.05]
[1680463489233,0.0911,28122.0,28121.0,0.05]
[1680463492034,0.0919,28122.0,28121.0,0.05]
[1680463493930,0.09182096,28122.0,28121.0,0.05]
[1680463495237,0.10913224,28122.0,28121.0,0.05]
[1680463495631,0.10913224,28122.0,28120.0,0.05]
[1680463496732,0.10921128,28122.0,28121.0,0.3007]
[1680463497234,0.10921128,28122.0,28121.0,0.3896]
[1680463497436,0.02031128,28122.0,28121.0,0.3896]
[1680463497624,0.0889,28126.0,28121.0,0.3896]
[1680463497828,0.0889,28126.0,28125.0,0.3007]
[1680463499432,0.0899,28126.0,28125.0,0.3037]
[1680463500936,0.0909,28126.0,28125.0,0.3037]
[1680463501933,0.002,28126.0,28125.0,0.3037]
[1680463502933,0.0881,28128.0,28125.0,0.3007]
[1680463503136,0.0881,28128.0,28126.0,0.05]
[1680463503929,0.0881,28128.0,28126.0,0.053]
[1680463504134,0.0891,28128.0,28126.0,0.053]
[1680463506235,0.01736034,28127.0,28126.0,0.053]
[1680463507037,0.01836034,28127.0,28126.0,0.053]
[1680463508137,0.01836034,28127.0,28126.0,0.003]
[1680463510036,0.10726034,28127.0,28126.0,0.003]
[1680463510236,0.10726034,28127.0,28126.0,0.053]
[1680463511031,0.10726034,28127.0,28126.0,0.003]
[1680463517548,0.01836034,28127.0,28126.0,0.053]
[1680463519148,0.01836034,28127.0,28126.0,0.003]
[1680463519652,0.01836034,28127.0,28126.0,0.053]
[1680463521947,0.10726034,28127.0,28126.0,0.3037]
[1680463527155,0.16016034,28127.0,28126.0,0.3037]
[1680463527552,0.16016034,28127.0,28124.0,0.3007]
[1680463527747,0.08906034,28127.0,28125.0,0.05]
[1680463528057,0.0711,28126.0,28125.0,0.05]
[1680463528565,0.13846822,28126.0,28125.0,0.05]
[1680463528855,0.08846822,28126.0,28125.0,0.05]
[1680463529652,0.08946822,28126.0,28125.0,0.05]
[1680463531252,0.08946822,28126.0,28125.0,0.3507]
[1680463537464,0.01836822,28126.0,28125.0,0.4218]
[1680463537762,0.3724,28132.0,28125.0,0.4923]
[1680463537956,0.3724,28132.0,28131.0,0.3007]
[1680463538157,0.0711,28132.0,28131.0,0.3507]
[1680463538660,0.0981,28132.0,28131.0,0.3507]
[1680463539861,0.027,28132.0,28131.0,0.4218]
[1680463542062,0.027,28132.0,28131.0,0.4396]
[1680463553075,0.21919426,28140.0,28132.0,0.05]
[1680463553366,0.16919426,28140.0,28139.0,0.3007]
[1680463553965,0.05,28140.0,28139.0,0.3007]
[1680463554368,0.058,28140.0,28139.0,0.3007]
[1680463554674,0.05,28140.0,28139.0,0.3007]
[1680463554873,0.058,28140.0,28139.0,0.3027]
[1680463555075,0.008,28140.0,28139.0,0.3027]
[1680463558877,0.17735966,28140.0,28139.0,0.3027]
[1680463559469,0.17736718,28140.0,28139.0,0.3027]
[1680463561379,0.008,28140.0,28139.0,0.3027]
[1680463561580,0.16936718,28143.0,28140.0,0.05]
[1680463561779,0.34289318,28144.0,28140.0,0.05]
[1680463561780,0.25816718,28144.0,28140.0,0.05]
[1680463562787,0.0888,28144.0,28143.0,0.3007]
[1680463562985,0.0898,28144.0,28143.0,0.3007]
[1680463564490,0.0898,28144.0,28143.0,0.3027]
[1680463565492,0.0898,28144.0,28143.0,0.31370082]
[1680463567192,0.001,28144.0,28143.0,0.31370082]
[1680463568397,0.001,28144.0,28143.0,0.40190082]
[1680463571593,0.001,28144.0,28143.0,0.31370082]
[1680463571786,0.001,28144.0,28143.0,0.40260082]
[1680463577896,0.001,28144.0,28143.0,0.10190082]
[1680463578300,0.001,28144.0,28143.0,0.70330082]
[1680463580093,0.001,28144.0,28143.0,0.61440082]
[1680463580290,0.001,28144.0,28143.0,0.61984706]
[1680463585602,0.001,28144.0,28143.0,0.01844706]
[1680463585801,0.001,28144.0,28143.0,0.31914706]
[1680463590709,0.001,28144.0,28143.0,0.01844706]
[1680463590904,0.001,28144.0,28143.0,0.31914706]
[1680463591306,0.001,28144.0,28143.0,0.45794706]
[1680463591710,0.001,28144.0,28143.0,0.75864706]
[1680463591910,0.001,28144.0,28143.0,0.66984706]
[1680463592108,0.0888,28146.0,28144.0,0.05]
[1680463592310,0.22212951,28148.0,28145.0,0.0888]
[1680463592508,0.22212951,28148.0,28147.0,0.3007]
[1680463592812,0.16936718,28148.0,28147.0,0.3007]
[1680463594104,0.16936718,28148.0,28147.0,0.3027]
[1680463595319,0.05,28148.0,28147.0,0.31914327]
[1680463595617,0.21939584,28148.0,28147.0,0.31914327]
[1680463596117,0.05,28148.0,28147.0,0.31914327]
[1680463597216,0.4388,28148.0,28143.0,0.3007]
[1680463597412,0.0886,28145.0,28143.0,0.3007]
[1680463597619,0.05,28144.0,28143.0,0.3007]
[1680463598123,0.0886,28145.0,28143.0,0.3027]
[1680463599415,0.002,28144.0,28143.0,0.3027]
[1680463599822,0.0906,28145.0,28143.0,0.3027]
[1680463600217,0.002,28144.0,28143.0,0.3027]
[1680463600722,0.0906,28145.0,28143.0,0.3027]
[1680463601319,0.0906,28145.0,28143.0,0.3527]
[1680463601927,0.002,28144.0,28143.0,0.3527]
[1680463602225,0.052,28144.0,28143.0,0.3527]
[1680463602423,0.0906,28145.0,28143.0,0.3027]
[1680463603027,0.002,28144.0,28143.0,0.3027]
[1680463603229,0.052,28144.0,28143.0,0.3027]
[1680463603421,0.05,28144.0,28143.0,0.3027]
[1680463603822,0.05,28144.0,28143.0,0.3007]
[1680463604022,0.002,28144.0,28143.0,0.3027]
[1680463604223,0.052,28144.0,28143.0,0.3027]
[1680463604427,0.002,28144.0,28143.0,0.3027]
[1680463604831,0.002,28144.0,28143.0,0.3170855]
[1680463607125,0.0731,28144.0,28143.0,0.3170855]
[1680463607531,0.0731,28144.0,28143.0,0.0163855]
[1680463608634,0.0731,28144.0,28143.0,0.0663855]
[1680463609627,0.0731,28144.0,28143.0,0.0163855]
[1680463613036,0.0731,28144.0,28143.0,0.3670855]
[1680463615032,0.002,28144.0,28143.0,0.3670855]
[1680463615228,0.002,28144.0,28143.0,0.4380855]
[1680463618940,0.002,28144.0,28143.0,0.7387855]
[1680463620437,0.002,28144.0,28143.0,0.6887855]
[1680463621941,0.002,28144.0,28143.0,0.6888855]
[1680463630646,0.17186532,28144.0,28143.0,0.3881855]
[1680463631842,0.0731,28144.0,28143.0,0.0163855]
[1680463632049,0.36356532,28144.0,28143.0,0.0163855]
[1680463634351,0.31356532,28144.0,28143.0,0.0163855]
[1680463635950,0.1437,28144.0,28143.0,0.0163855]
[1680463636145,0.05,28143.0,28137.0,0.3007]
[1680463636350,0.0711,28138.0,28137.0,0.3007]
[1680463637949,0.0711,28138.0,28137.0,0.3027]
[1680463638454,0.0711,28138.0,28137.0,0.3137]
[1680463638854,0.0711,28138.0,28137.0,0.013]
[1680463641747,0.0711,28138.0,28137.0,0.3137]
[1680463641948,0.0711,28138.0,28137.0,0.013]
[1680463642158,0.0711,28138.0,28137.0,0.3137]
[1680463643758,0.0711,28138.0,28137.0,0.31738428]
[1680463645453,0.0711,28138.0,28137.0,0.01668428]
[1680463645658,0.0711,28138.0,28137.0,0.31738428]
[1680463646253,0.0711,28138.0,28137.0,0.01668428]
[1680463646458,0.0711,28138.0,28137.0,0.31738428]
[1680463647851,0.0709,28139.0,28137.0,0.38778428]
[1680463648051,0.0709,28139.0,28138.0,0.05]
[1680463648849,0.0709,28139.0,28138.0,0.057]
[1680463651362,0.0709,28139.0,28138.0,0.3577]
[1680463652062,0.0711,28140.0,28138.0,0.4288]
[1680463652859,0.0711,28140.0,28138.0,0.4218]
[1680463654966,0.0711,28140.0,28139.0,0.6014]
[1680463655266,0.0711,28140.0,28139.0,0.6514]
[1680463655466,0.0711,28140.0,28139.0,0.65508104]
[1680463655664,0.0711,28140.0,28139.0,0.05368104]
[1680463655864,0.0711,28140.0,28139.0,0.65508104]
[1680463657568,0.0711,28140.0,28139.0,0.05368104]
[1680463657963,0.0711,28140.0,28139.0,0.65508104]
[1680463661966,0.0711,28141.0,28139.0,0.72618104]
[1680463662958,0.0751,28141.0,28139.0,0.72618104]
[1680463665172,0.0751,28141.0,28139.0,0.67618104]
[1680463666577,0.0751,28141.0,28139.0,0.37548104]
[1680463671978,0.0709,28140.0,28139.0,0.30438104]
[1680463677180,0.0706,28140.0,28139.0,0.30438104]
[1680463678979,0.0711,28143.0,28139.0,0.49598104]
[1680463679275,0.0711,28143.0,28142.0,0.3007]
[1680463679483,0.1211,28143.0,28142.0,0.3007]
[1680463679675,0.1211,28143.0,28142.0,0.30429984]
[1680463679875,0.0711,28143.0,28142.0,0.30429984]
[1680463680075,0.0751,28143.0,28142.0,0.30629984]
[1680463680674,0.1251,28143.0,28142.0,0.30629984]
[1680463680983,0.0751,28143.0,28142.0,0.30629984]
[1680463682077,0.1251,28143.0,28142.0,0.30629984]
[1680463682282,0.1962,28143.0,28142.0,0.00559984]
[1680463682477,0.36607787,28143.0,28142.0,0.00559984]
[1680463689391,0.1962,28143.0,28142.0,0.002]
[1680463689889,0.29495407,28143.0,28142.0,0.002]
[1680463690289,0.29495407,28143.0,28142.0,0.00559691]
[1680463690488,0.29495407,28143.0,28142.0,0.002]
[1680463691693,0.29495407,28143.0,28142.0,0.00559649]
[1680463691990,0.36605407,28143.0,28142.0,0.00559649]
[1680463692386,0.36605407,28143.0,28142.0,0.002]
[1680463692995,0.36605407,28143.0,28142.0,0.00559616]
[1680463693294,0.36605407,28143.0,28142.0,0.002]
[1680463693796,0.36605407,28143.0,28142.0,0.00559592]
[1680463693987,0.36605407,28143.0,28142.0,0.002]
[1680463694390,0.36605407,28143.0,28142.0,0.00559576]
[1680463694691,0.36605407,28143.0,28142.0,0.002]
[1680463695292,0.36605407,28143.0,28142.0,0.00559551]
[1680463695487,0.36605407,28143.0,28142.0,0.002]
[1680463696096,0.31605407,28143.0,28142.0,0.002]
[1680463700402,0.31605407,28143.0,28142.0,0.00559403]
[1680463701306,0.31605407,28143.0,28142.0,0.30629403]
[1680463701498,0.0751,28143.0,28142.0,0.37739403]
[1680463707211,0.004,28143.0,28142.0,0.37739403]
[1680463711912,0.0751,28143.0,28142.0,0.30629403]
[1680463714918,0.004,28143.0,28142.0,0.37739403]
[1680463715613,0.075,28143.0,28142.0,0.30629403]
[1680463716013,0.24485407,28143.0,28142.0,0.30629403]
[1680463716713,0.075,28143.0,28142.0,0.30629403]
[1680463716914,0.24485407,28143.0,28142.0,0.30629403]
[1680463717620,0.24485407,28143.0,28142.0,0.00559403]
[1680463720409,0.24485407,28143.0,28142.0,0.30629403]
[1680463720613,0.075,28143.0,28142.0,0.30629403]
[1680463721922,0.075,28143.0,28142.0,0.00559403]
[1680463722224,0.0751,28143.0,28142.0,0.00559403]
[1680463726521,0.1251,28143.0,28142.0,0.00559403]
[1680463726720,0.0751,28143.0,28142.0,0.00559403]
[1680463730024,0.1251,28143.0,28142.0,0.00559403]
[1680463730219,0.29495407,28143.0,28142.0,0.00559403]
[1680463730413,0.05,28142.0,28137.0,0.3716]
[1680463730618,0.21985407,28142.0,28137.0,0.3716]
[1680463730814,0.0711,28139.0,28138.0,0.00313635]
[1680463731023,0.0711,28139.0,28138.0,0.05313635]
[1680463732018,0.1417,28139.0,28138.0,0.00313635]
[1680463732214,0.335,28139.0,28138.0,0.00313635]
[1680463732623,0.0718,28139.0,28138.0,0.00313635]
[1680463733324,0.0707,28139.0,28138.0,0.00913635]
[1680463733519,0.0707,28139.0,28138.0,0.05913635]
[1680463735623,0.0707,28139.0,28138.0,0.35983635]
[1680463737228,0.0711,28139.0,28138.0,0.35983635]
[1680463737520,0.0711,28139.0,28138.0,0.05913635]
[1680463737724,0.0711,28139.0,28138.0,0.35983635]
[1680463745027,0.0711,28139.0,28138.0,0.43093635]
[1680463745329,0.0704,28141.0,28138.0,0.43093635]
[1680463745523,0.0704,28141.0,28140.0,0.05]
[1680463746431,0.0764,28141.0,28140.0,0.05]
[1680463748226,0.0764,28141.0,28140.0,0.3507]
[1680463749925,0.0764,28141.0,28140.0,0.05]
[1680463750734,0.0764,28141.0,28139.0,0.42470837]
[1680463750931,0.0711,28140.0,28139.0,0.00320837]
[1680463751234,0.1211,28140.0,28137.0,0.05]
[1680463751434,0.0711,28138.0,28137.0,0.05]
[1680463751934,0.0711,28139.0,28137.0,0.1205]
[1680463752642,0.0711,28139.0,28137.0,0.1335]
[1680463753533,0.0711,28139.0,28138.0,0.3007]
[1680463754832,0.0711,28139.0,28138.0,0.3067]
[1680463757440,0.0711,28139.0,28138.0,0.3778]
[1680463759835,0.0711,28139.0,28138.0,0.3067]
[1680463760542,0.0711,28139.0,28138.0,0.30990418]
[1680463765243,0.0711,28139.0,28132.0,0.05]
[1680463765244,0.1923,28138.0,28132.0,0.05]
[1680463765443,0.0711,28134.0,28132.0,0.05]
[1680463765643,0.1211,28134.0,28132.0,0.05]
[1680463765842,0.0711,28134.0,28132.0,0.05]
[1680463766447,0.0711,28134.0,28133.0,0.062]
[1680463766748,0.0721,28134.0,28133.0,0.076]
[1680463772651,0.07518428,28134.0,28133.0,0.076]
[1680463779348,0.07518428,28134.0,28133.0,0.026]
[1680463782766,0.07518428,28134.0,28133.0,0.024]
[1680463782955,0.07518428,28134.0,28133.0,0.074]
[1680463783950,0.07657798,28134.0,28133.0,0.074]
[1680463788762,0.07657798,28134.0,28133.0,0.024]
[1680463791861,0.14767798,28134.0,28133.0,0.024]
[1680463793863,0.14767798,28134.0,28133.0,0.022]
[1680463797867,0.14767798,28134.0,28133.0,0.0936722]
[1680463798257,0.44837798,28134.0,28133.0,0.0936722]
[1680463798461,0.14767798,28134.0,28133.0,0.0936722]
[1680463798668,0.44837798,28134.0,28133.0,0.0936722]
[1680463800771,0.07657798,28134.0,28133.0,0.0936722]
[1680463801469,0.07657798,28134.0,28133.0,0.09613784]
[1680463818600,0.12657798,28134.0,28133.0,0.09599759]
[1680463819191,0.07657798,28134.0,28133.0,0.09599759]
[1680463820292,0.37727798,28134.0,28133.0,0.09599759]
[1680463831889,0.44817798,28134.0,28133.0,0.09599759]
[1680463833893,0.44817798,28134.0,28133.0,0.08113784]
[1680463834401,0.44817798,28134.0,28133.0,0.08713784]
[1680463836703,0.14747798,28134.0,28133.0,0.08713784]
[1680463841998,0.07637798,28134.0,28133.0,0.08713784]
[1680463857716,0.07637798,28134.0,28133.0,0.13713784]
[1680463862025,0.07657798,28134.0,28133.0,0.13713784]
[1680463862625,0.07637893,28134.0,28133.0,0.13713784]
[1680463864225,0.07637893,28134.0,28133.0,0.08713784]
[1680463864619,0.08210626,28134.0,28133.0,0.08713784]
[1680463872121,0.08210626,28134.0,28133.0,0.08746608]
[1680463874330,0.0848155,28134.0,28133.0,0.08746608]
[1680463887437,0.08162782,28134.0,28133.0,0.08746608]
[1680463900839,0.07921261,28134.0,28133.0,0.08746608]
[1680463909448,0.07921261,28134.0,28133.0,0.08727824]
[1680463912956,0.07921261,28134.0,28133.0,0.38797824]
[1680463914152,0.07921261,28134.0,28133.0,0.08727824]
[1680463915060,0.00811261,28134.0,28133.0,0.50867824]
[1680463915362,0.16985407,28138.0,28133.0,0.57977824]
[1680463915666,0.16985407,28138.0,28137.0,0.14556608]
[1680463915858,0.16985407,28138.0,28137.0,0.19556608]
[1680463916060,0.16985407,28139.0,28137.0,0.19556608]
[1680463916362,0.16985407,28139.0,28138.0,0.1211]
[1680463916759,0.16985407,28139.0,28138.0,0.19556608]
[1680463917663,0.16985407,28139.0,28138.0,0.14556608]
[1680463918165,0.17485407,28139.0,28138.0,0.14756608]
[1680463918462,0.16985407,28139.0,28138.0,0.14556608]
[1680463918669,0.17485407,28139.0,28138.0,0.14656608]
[1680463919055,0.005,28139.0,28138.0,0.14656608]
[1680463922962,0.00734086,28139.0,28138.0,0.14656608]
[1680463923162,0.22719493,28139.0,28138.0,0.14656608]
[1680463923566,0.29829493,28139.0,28138.0,0.07546608]
[1680463930974,0.12844086,28139.0,28138.0,0.07546608]
[1680463931167,0.42914086,28139.0,28138.0,0.07546608]
[1680463931873,0.42914086,28139.0,28132.0,0.0711]
[1680463931874,0.67069258,28139.0,28132.0,0.0711]
[1680463932174,0.0708,28133.0,28131.0,0.0704]
[1680463932773,0.0708,28133.0,28132.0,0.05]
[1680463933578,0.1218,28133.0,28131.0,0.0984]
[1680463933973,0.0718,28133.0,28132.0,0.028]
[1680463934277,0.0718,28133.0,28132.0,0.078]
[1680463934482,0.0718,28133.0,28132.0,0.05]
[1680463934769,0.0718,28133.0,28131.0,0.0984]
[1680463934977,0.0718,28133.0,28132.0,0.028]
[1680463935176,0.0718,28133.0,28132.0,0.078]
[1680463936174,0.0708,28133.0,28131.0,0.0704]
[1680463936371,0.0718,28133.0,28131.0,0.0984]
[1680463936772,0.0718,28133.0,28132.0,0.078]
[1680463937182,0.0718,28133.0,28131.0,0.0984]